fUST/lending_fUST_20240528
["ID","MTS","AMOUNT","RATE_DAILY","PERIOD"]
[328063131,1716828665420,-500.0,0.00027945,4]
[328063132,1716828665430,-500.0,0.00027945,4]
[328063133,1716828665440,-618.91375334,0.00027945,4]
[328063134,1716828665449,-500.0,0.00027945,4]
[328063135,1716828665458,-431.12410768,0.00027945,4]
[328063136,1716828665468,-436.50113278,0.00027945,4]
[328063137,1716828665477,-550.01,0.00027945,4]
[328063138,1716828665487,-851.4,0.00027945,4]
[328063139,1716828665496,-500.0,0.00027945,4]
[328063140,1716828665505,-205.79613787,0.00027945,2]
[328063141,1716828665514,-500.0,0.00027945,4]
[328063142,1716828665523,-1016.02,0.00027945,4]
[328063143,1716828665532,-500.0,0.00027945,4]
[328063144,1716828665542,-728.84,0.00027945,4]
[328063145,1716828665554,-1130.97,0.00027945,4]
[328063146,1716828665563,-1216.29,0.00027945,4]
[328063147,1716828665572,-2810.41,0.00027945,4]
[328063148,1716828665581,-500.0,0.00027945,4]
[328063149,1716828665590,-2432.96,0.00027945,4]
[328063150,1716828665599,-500.0,0.00027945,4]
[328063151,1716828665609,-518.2,0.00027945,4]
[328063152,1716828665619,-509.77,0.00027945,4]
[328063153,1716828665629,-500.0,0.00027945,4]
[328063154,1716828665638,-500.0,0.00027945,4]
[328063155,1716828665647,-2823.17,0.00027945,4]
[328063156,1716828665656,-500.0,0.00027945,4]
[328063157,1716828665666,-500.0,0.00027945,4]
[328063158,1716828665675,-500.0,0.00027945,4]
[328063159,1716828665686,-500.0,0.00027945,4]
[328063160,1716828665696,-639.85,0.00027945,4]
[328063161,1716828665706,-760.94,0.00027945,4]
[328063162,1716828665715,-500.0,0.00027945,4]
[328063163,1716828665726,-500.0,0.00027945,4]
[328063164,1716828665736,-625.4,0.00027945,4]
[328063165,1716828665746,-519.9032516,0.00027945,4]
[328063166,1716828665755,-401.42088715,0.00027945,4]
[328063167,1716828665766,-594.07,0.00027945,4]
[328063168,1716828665779,-500.0,0.00027945,4]
[328063169,1716828665788,-500.0,0.00027945,4]
[328063170,1716828665800,-500.0,0.00027945,4]
[328063171,1716828665811,-1000.0,0.00027945,4]
[328063172,1716828665820,-984.46,0.00027945,4]
[328063173,1716828665830,-2041.19,0.00027945,4]
[328063174,1716828665839,-500.0,0.00027945,4]
[328063175,1716828665850,-500.0,0.00027945,4]
[328063176,1716828665860,-2214.31,0.00027945,4]
[328063177,1716828665870,-500.0,0.00027945,4]
[328063178,1716828665879,-1654.46,0.00027945,4]
[328063179,1716828665889,-576.6960416,0.00027945,4]
[328063180,1716828665898,-500.0,0.00027945,4]
[328063181,1716828665908,-591.11,0.00027945,4]
[328063182,1716828665917,-924.61,0.00027945,4]
[328063183,1716828665927,-500.0,0.00027945,4]
[328063184,1716828665938,-500.0,0.00027945,4]
[328063185,1716828665947,-500.0,0.00027945,4]
[328063186,1716828665957,-523.97602122,0.00027945,4]
[328063187,1716828665966,-500.0,0.00027945,4]
[328063188,1716828665975,-500.0,0.00027945,4]
[328063189,1716828665984,-500.0,0.00027945,4]
[328063190,1716828665992,-573.55772899,0.00027945,4]
[328063191,1716828666001,-1453.45,0.00027945,4]
[328063192,1716828666010,-641.76,0.00027945,4]
[328063193,1716828666019,-641.56,0.00027945,4]
[328063194,1716828666028,-500.0,0.00027945,4]
[328063195,1716828666038,-500.0,0.00027945,4]
[328063196,1716828666047,-500.0,0.00027945,4]
[328063197,1716828666058,-500.0,0.00027945,4]
[328063198,1716828666068,-500.0,0.00027945,4]
[328063199,1716828666078,-500.0,0.00027945,4]
[328063200,1716828666087,-500.0,0.00027945,4]
[328063201,1716828666097,-500.0,0.00027945,4]
[328063202,1716828666107,-519.20037889,0.00027945,4]
[328063203,1716828666117,-500.0,0.00027945,4]
[328063204,1716828666126,-500.0,0.00027945,4]
[328063205,1716828666135,-949.44,0.00027945,4]
[328063206,1716828666144,-3125.75,0.00027945,4]
[328063207,1716828666153,-517.0236423,0.00027945,4]
[328063208,1716828666162,-866.38,0.00027945,4]
[328063209,1716828666171,-1068.09,0.00027945,4]
[328063210,1716828666181,-233.85,0.00027945,4]
[328063211,1716828666190,-831.3,0.00027945,4]
[328063212,1716828666200,-654.84,0.00027945,4]
[328063213,1716828666210,-1063.2,0.00027945,4]
[328063214,1716828666219,-988.59,0.00027945,4]
[328063215,1716828666229,-500.0,0.00027945,4]
[328063216,1716828666239,-500.0,0.00027945,4]
[328063217,1716828666249,-513.36784024,0.00027945,4]
[328063218,1716828666260,-2485.43,0.00027945,4]
[328063219,1716828666269,-691.66,0.00027945,4]
[328063220,1716828666278,-500.0,0.00027945,4]
[328063221,1716828666288,-624.62857784,0.00027945,4]
[328063222,1716828666298,-500.0,0.00027945,4]
[328063223,1716828666309,-500.0,0.00027945,4]
[328063224,1716828666318,-563.58,0.00027945,4]
[328063225,1716828666329,-500.0,0.00027945,4]
[328063226,1716828666339,-3918.91,0.00027945,4]
[328063227,1716828666348,-500.0,0.00027945,4]
[328063228,1716828666358,-520.07,0.00027945,4]
[328063229,1716828666367,-1269.93,0.00027945,4]
[328063230,1716828666376,-1098.77,0.00027945,4]
[328063231,1716828666386,-500.0,0.00027945,4]
[328063232,1716828666395,-500.0,0.00027945,4]
[328063233,1716828666404,-500.0,0.00027945,4]
[328063234,1716828666413,-500.0,0.00027945,4]
[328063235,1716828666422,-500.0,0.00027945,4]
[328063236,1716828666432,-3693.27,0.00027945,4]
[328063237,1716828666441,-500.0,0.00027945,4]
[328063238,1716828666450,-500.0,0.00027945,4]
[328063239,1716828666459,-530.15,0.00027945,4]
[328063240,1716828666468,-536.32,0.00027945,4]
[328063241,1716828666478,-507.9719466,0.00027945,4]
[328063242,1716828666487,-500.0,0.00027945,4]
[328063243,1716828666498,-611.73,0.00027945,4]
[328063244,1716828666507,-500.0,0.00027945,4]
[328063245,1716828666516,-500.0,0.00027945,4]
[328063246,1716828666525,-500.0,0.00027945,4]
[328063247,1716828666537,-725.57,0.00027945,4]
[328063248,1716828666552,-500.0,0.00027945,4]
[328063249,1716828666565,-1157.28,0.00027945,2]
[328063250,1716828666577,-500.0,0.00027945,4]
[328063251,1716828666589,-504.63,0.00027945,4]
[328063252,1716828666602,-500.0,0.00027945,4]
[328063253,1716828666617,-617.72,0.00027945,4]
[328063254,1716828666631,-1823.06,0.00027945,4]
[328063255,1716828666643,-601.37,0.00027945,4]
[328063256,1716828666658,-500.0,0.00027945,4]
[328063257,1716828666671,-500.0,0.00027945,4]
[328063258,1716828666683,-500.0,0.00027945,4]
[328063259,1716828666695,-347.85627002,0.00027945,4]
[328063260,1716828666708,-2675.35,0.00027945,4]
[328063261,1716828666721,-500.0,0.00027945,4]
[328063262,1716828666734,-500.0,0.00027945,4]
[328063263,1716828666746,-596.2,0.00027945,4]
[328063264,1716828666757,-815.6,0.00027945,4]
[328063265,1716828666774,-1132.79,0.00027945,4]
[328063266,1716828666787,-500.0,0.00027945,4]
[328063267,1716828666801,-500.0,0.00027945,4]
[328063268,1716828666817,-154.5219358,0.00027945,4]
[328063269,1716828666830,-500.0,0.00027945,4]
[328063270,1716828666842,-500.0,0.00027945,4]
[328063271,1716828666854,-500.0,0.00027945,4]
[328063272,1716828666865,-669.54,0.00027945,4]
[328063273,1716828666877,-606.63,0.00027945,4]
[328063274,1716828666890,-500.0,0.00027945,4]
[328063275,1716828666904,-500.0,0.00027945,4]
[328063276,1716828666914,-500.0,0.00027945,4]
[328063277,1716828666927,-500.0,0.00027945,4]
[328063278,1716828666939,-500.0,0.00027945,4]
[328063279,1716828666952,-1859.98,0.00027945,4]
[328063280,1716828666963,-500.0,0.00027945,4]
[328063281,1716828666974,-500.0,0.00027945,4]
[328063282,1716828666986,-540.50801756,0.00027945,4]
[328063283,1716828666998,-945.57,0.00027945,4]
[328063284,1716828667009,-425.00055968,0.00027945,4]
[328063285,1716828667021,-500.0,0.00027945,4]
[328063286,1716828667033,-1646.07,0.00027945,4]
[328063287,1716828667045,-500.0,0.00027945,4]
[328063288,1716828667058,-500.0,0.00027945,4]
[328063289,1716828667069,-500.0,0.00027945,4]
[328063290,1716828667081,-500.0,0.00027945,4]
[328063291,1716828667093,-525.00444718,0.00027945,4]
[328063292,1716828667105,-500.0,0.00027945,4]
[328063293,1716828667116,-250.0,0.00027945,4]
[328063294,1716828667127,-638.7,0.00027945,4]
[328063295,1716828667139,-574.14,0.00027945,4]
[328063296,1716828667151,-500.0,0.00027945,4]
[328063297,1716828667163,-500.0,0.00027945,4]
[328063298,1716828667174,-2360.67,0.00027945,4]
[328063299,1716828667186,-500.0,0.00027945,4]
[328063300,1716828667198,-500.0,0.00027945,4]
[328063301,1716828667209,-1074.44,0.00027945,4]
[328063302,1716828667221,-921.35,0.00027945,4]
[328063303,1716828667232,-576.69,0.00027945,4]
[328063304,1716828667243,-271.05247055,0.00027945,4]
[328063305,1716828667254,-1212.06,0.00027945,4]
[328063306,1716828667265,-12483.57,0.00027945,4]
[328063307,1716828667276,-528.21,0.00027945,4]
[328063308,1716828667287,-500.0,0.00027945,4]
[328063309,1716828667298,-500.0,0.00027945,4]
[328063310,1716828667311,-1012.48,0.00027945,4]
[328063311,1716828667322,-500.0,0.00027945,4]
[328063312,1716828667333,-292.29552175,0.00027945,4]
[328063313,1716828667344,-773.35,0.00027945,4]
[328063314,1716828667355,-500.0,0.00027945,4]
[328063315,1716828667366,-910.69,0.00027945,4]
[328063316,1716828667377,-500.0,0.00027945,4]
[328063317,1716828667388,-500.0,0.00027945,4]
[328063318,1716828667399,-500.0,0.00027945,4]
[328063319,1716828667410,-704.47,0.00027945,4]
[328063320,1716828667420,-500.0,0.00027945,4]
[328063321,1716828667431,-790.95,0.00027945,4]
[328063322,1716828667442,-1000.0,0.00027945,4]
[328063323,1716828667453,-500.0,0.00027945,4]
[328063324,1716828667464,-500.0,0.00027945,4]
[328063325,1716828667475,-500.0,0.00027945,4]
[328063326,1716828667486,-500.0,0.00027945,4]
[328063327,1716828667496,-814.71,0.00027945,4]
[328063328,1716828667507,-2637.19,0.00027945,4]
[328063329,1716828667517,-500.0,0.00027945,4]
[328063330,1716828667527,-500.0,0.00027945,4]
[328063331,1716828667538,-500.0,0.00027945,4]
[328063332,1716828667549,-736.82,0.00027945,4]
[328063333,1716828667562,-952.11,0.00027945,4]
[328063334,1716828667572,-500.0,0.00027945,4]
[328063335,1716828667583,-500.0,0.00027945,4]
[328063336,1716828667594,-500.0,0.00027945,4]
[328063337,1716828667605,-529.54,0.00027945,4]
[328063338,1716828667615,-500.0,0.00027945,4]
[328063339,1716828667626,-500.0,0.00027945,4]
[328063340,1716828667636,-576.92,0.00027945,4]
[328063341,1716828667647,-500.0,0.00027945,4]
[328063342,1716828667657,-594.73,0.00027945,4]
[328063343,1716828667667,-494.9476882,0.00027945,4]
[328063344,1716828667677,-500.0,0.00027945,4]
[328063345,1716828667688,-500.0,0.00027945,4]
[328063346,1716828667699,-669.39,0.00027945,4]
[328063347,1716828667709,-1352.61,0.00027945,4]
[328063348,1716828667720,-500.0,0.00027945,4]
[328063349,1716828667730,-562.4,0.00027945,4]
[328063350,1716828667741,-667.65,0.00027945,4]
[328063351,1716828667751,-3442.49,0.00027945,4]
[328063352,1716828667762,-500.0,0.00027945,4]
[328063353,1716828667774,-500.0,0.00027945,4]
[328063354,1716828667785,-500.0,0.00027945,4]
[328063355,1716828667796,-500.0,0.00027945,4]
[328063356,1716828667809,-500.0,0.00027945,4]
[328063357,1716828667819,-300.0,0.00027945,4]
[328063358,1716828667830,-550.83,0.00027945,4]
[328063359,1716828667843,-500.0,0.00027945,4]
[328063360,1716828667855,-500.0,0.00027945,4]
[328063361,1716828667866,-776.28,0.00027945,4]
[328063362,1716828667876,-3257.38,0.00027945,4]
[328063363,1716828667887,-2136.16,0.00027945,4]
[328063364,1716828667898,-2740.36,0.00027945,4]
[328063365,1716828667908,-1654.94,0.00027945,4]
[328063366,1716828667919,-554.59,0.00027945,4]
[328063367,1716828667929,-500.0,0.00027945,4]
[328063368,1716828667940,-500.0,0.00027945,4]
[328063369,1716828667950,-1514.86,0.00027945,4]
[328063370,1716828667961,-500.0,0.00027945,4]
[328063371,1716828667971,-500.0,0.00027945,4]
[328063372,1716828667982,-500.0,0.00027945,4]
[328063373,1716828667992,-500.0,0.00027945,4]
[328063374,1716828668002,-500.0,0.00027945,4]
[328063375,1716828668013,-500.0,0.00027945,4]
[328063376,1716828668023,-500.0,0.00027945,4]
[328063377,1716828668034,-500.0,0.00027945,4]
[328063378,1716828668044,-1050.35,0.00027945,4]
[328063379,1716828668057,-500.0,0.00027945,4]
[328063380,1716828668268,-892.42,0.00027945,4]
[328063381,1716828668281,-500.0,0.00027945,4]
[328063382,1716828668291,-500.0,0.00027945,4]
[328063383,1716828668302,-500.0,0.00027945,4]
[328063384,1716828668311,-500.0,0.00027945,4]
[328063385,1716828668320,-500.0,0.00027945,4]
[328063386,1716828668329,-571.30844287,0.00027945,4]
[328063387,1716828668338,-500.0,0.00027945,4]
[328063388,1716828668347,-500.0,0.00027945,2]
[328063389,1716828668359,-1363.75,0.00027945,4]
[328063390,1716828668368,-651.97,0.00027945,4]
[328063391,1716828668377,-500.0,0.00027945,4]
[328063392,1716828668386,-593.66,0.00027945,4]
[328063393,1716828668395,-1131.43,0.00027945,4]
[328063394,1716828668403,-539.52,0.00027945,4]
[328063395,1716828668412,-500.0,0.00027945,4]
[328063396,1716828668422,-500.0,0.00027945,4]
[328063397,1716828668431,-7625.13,0.00027945,4]
[328063398,1716828668440,-500.0,0.00027945,4]
[328063399,1716828668449,-500.0,0.00027945,4]
[328063400,1716828668458,-500.0,0.00027945,4]
[328063401,1716828668467,-500.0,0.00027945,4]
[328063402,1716828668477,-574.45,0.00027945,4]
[328063403,1716828668486,-1087.57,0.00027945,4]
[328063404,1716828668495,-632.54,0.00027945,4]
[328063405,1716828668503,-6361.41,0.00027945,4]
[328063406,1716828668512,-1312.75,0.00027945,4]
[328063407,1716828668521,-633.72,0.00027945,4]
[328063408,1716828668532,-500.0,0.00027945,4]
[328063409,1716828668541,-500.0,0.00027945,4]
[328063410,1716828668552,-500.0,0.00027945,4]
[328063411,1716828668561,-587.32,0.00027945,4]
[328063412,1716828668570,-642.28,0.00027945,4]
[328063413,1716828668579,-323.23771119,0.00027945,4]
[328063414,1716828668588,-500.0,0.00027945,4]
[328063415,1716828668597,-4795.75,0.00027945,4]
[328063416,1716828668606,-500.0,0.00027945,4]
[328063417,1716828668615,-500.0,0.00027945,4]
[328063418,1716828668625,-500.0,0.00027945,4]
[328063419,1716828668635,-2064.41,0.00027945,4]
[328063420,1716828668644,-500.0,0.00027945,4]
[328063421,1716828668653,-500.0,0.00027945,4]
[328063422,1716828668662,-500.0,0.00027945,4]
[328063423,1716828668671,-500.0,0.00027945,4]
[328063424,1716828668680,-500.0,0.00027945,4]
[328063425,1716828668689,-500.0,0.00027945,4]
[328063426,1716828668698,-500.0,0.00027945,4]
[328063427,1716828668708,-500.0,0.00027945,4]
[328063428,1716828668717,-500.0,0.00027945,4]
[328063429,1716828668727,-500.0,0.00027945,4]
[328063430,1716828668736,-500.0,0.00027945,4]
[328063431,1716828668746,-500.0,0.00027945,4]
[328063432,1716828668756,-392.2678983,0.00027945,4]
[328063433,1716828668769,-500.0,0.00027945,4]
[328063434,1716828668778,-500.0,0.00027945,4]
[328063435,1716828668788,-500.0,0.00027945,4]
[328063436,1716828668797,-500.0,0.00027945,4]
[328063437,1716828668810,-500.0,0.00027945,4]
[328063438,1716828668819,-2566.21,0.00027945,2]
[328063439,1716828668828,-153.41830922,0.00027945,4]
[328063440,1716828668837,-756.1,0.00027945,4]
[328063441,1716828668846,-500.0,0.00027945,4]
[328063442,1716828668857,-500.0,0.00027945,4]
[328063443,1716828668867,-510.95,0.00027945,4]
[328063444,1716828668876,-801.47,0.00027945,4]
[328063445,1716828668885,-506.82,0.00027945,4]
[328063446,1716828668895,-1002.65,0.00027945,4]
[328063447,1716828668904,-1000.0,0.00027945,2]
[328063448,1716828668914,-500.0,0.00027945,4]
[328063449,1716828668923,-500.0,0.00027945,4]
[328063450,1716828668932,-500.0,0.00027945,4]
[328063451,1716828668942,-625.4,0.00027945,4]
[328063452,1716828668951,-605.1,0.00027945,4]
[328063453,1716828668959,-500.0,0.00027945,2]
[328063454,1716828668969,-500.0,0.00027945,4]
[328063455,1716828668979,-802.98,0.00027945,4]
[328063456,1716828668987,-2197.41,0.00027945,4]
[328063457,1716828668997,-17023.71,0.00027945,4]
[328063458,1716828669006,-544.16,0.00027945,4]
[328063459,1716828669015,-500.0,0.00027945,4]
[328063460,1716828669024,-879.06,0.00027945,4]
[328063461,1716828669034,-500.0,0.00027945,4]
[328063462,1716828669043,-629.17027132,0.00027945,4]
[328063463,1716828669053,-726.78,0.00027945,4]
[328063464,1716828669063,-500.0,0.00027945,4]
[328063465,1716828669073,-6977.2,0.00027945,4]
[328063466,1716828669082,-750.83,0.00027945,4]
[328063467,1716828669092,-2138.53,0.00027945,4]
[328063468,1716828669101,-500.0,0.00027945,4]
[328063469,1716828669111,-20833.29,0.00027945,4]
[328063470,1716828669121,-5392.04,0.00027945,4]
[328063471,1716828669131,-500.0,0.00027945,4]
[328063472,1716828669140,-500.0,0.00027945,4]
[328063473,1716828669150,-786.56,0.00027945,4]
[328063474,1716828669159,-805.12,0.00027945,4]
[328063475,1716828669168,-500.0,0.00027945,4]
[328063476,1716828669178,-2243.3,0.00027945,4]
[328063477,1716828669188,-500.0,0.00027945,4]
[328063478,1716828669197,-3657.81,0.00027945,4]
[328063479,1716828669207,-320.0,0.0002796,35]
[328063480,1716828669216,-150.5,0.0002796,35]
[328063481,1716828669226,-150.5,0.0002796,35]
[328063482,1716828669235,-150.5,0.0002796,35]
[328063483,1716828669244,-1628.7012624,0.0002796,2]
[328063484,1716828669253,-320.0,0.0002797,35]
[328063485,1716828669263,-150.5,0.0002797,35]
[328063486,1716828669272,-150.5,0.0002797,35]
[328063487,1716828669281,-150.5,0.0002797,35]
[328063488,1716828669291,-150.5,0.0002797,35]
[328063489,1716828669300,-320.0,0.0002798,35]
[328063490,1716828669310,-150.5,0.0002798,35]
[328063491,1716828669319,-150.5,0.0002798,35]
[328063492,1716828669328,-150.5,0.0002798,35]
[328063493,1716828669337,-150.5,0.0002798,35]
[328063494,1716828669347,-1831.81831384,0.00027987,7]
[328063495,1716828669356,-221.83484626,0.00028,2]
[328063496,1716828669365,-4150.0,0.00028,2]
[328063497,1716828669374,-416.68693354,0.00028,2]
[328063498,1716828669383,-500.0,0.00028,2]
[328063499,1716828669392,-32344.30981354,0.00028,4]
[328063500,1716828669401,-300.0,0.00028,2]
[328063501,1716828669410,-500.0,0.00028,2]
[328063502,1716828669419,-154.42348508,0.00028061,2]
[328063503,1716828669428,-500.0,0.00028219,2]
[328063504,1716828669437,-500.77017499,0.00028219,2]
[328063505,1716828669447,-500.0,0.00028219,4]
[328063506,1716828669456,-500.0,0.00028219,4]
[328063507,1716828669465,-512.38439156,0.00028219,2]
[328063508,1716828669474,-824.6,0.00028219,4]
[328063509,1716828669484,-500.0,0.00028219,4]
[328063510,1716828669493,-500.0,0.00028219,4]
[328063511,1716828669502,-346.21637294,0.00028219,4]
[328063512,1716828669511,-675.69,0.00028219,4]
[328063513,1716828669520,-500.0,0.00028219,4]
[328063514,1716828669529,-1000.0,0.00028219,5]
[328063515,1716828669538,-811.63,0.00028219,4]
[328063516,1716828669548,-500.0,0.00028219,4]
[328063517,1716828669559,-500.0,0.00028219,4]
[328063518,1716828669569,-500.0,0.00028219,4]
[328063519,1716828669578,-726.55,0.00028219,4]
[328063520,1716828669587,-500.0,0.00028219,4]
[328063521,1716828669595,-500.0,0.00028219,4]
[328063522,1716828669604,-500.0,0.00028219,4]
[328063523,1716828669613,-500.0,0.00028219,4]
[328063524,1716828669622,-500.0,0.00028219,4]
[328063525,1716828669632,-500.0,0.00028219,4]
[328063526,1716828669641,-626.93,0.00028219,4]
[328063527,1716828669650,-500.0,0.00028219,4]
[328063528,1716828669659,-500.0,0.00028219,4]
[328063529,1716828669669,-527.01361352,0.00028219,4]
[328063530,1716828669679,-500.0,0.00028219,4]
[328063531,1716828669688,-500.0,0.00028219,4]
[328063532,1716828669698,-500.0,0.00028219,4]
[328063533,1716828669707,-1224.04,0.00028219,4]
[328063534,1716828669716,-500.0,0.00028219,4]
[328063535,1716828669725,-500.0,0.00028219,4]
[328063536,1716828669734,-535.59,0.00028219,4]
[328063537,1716828669743,-500.0,0.00028219,4]
[328063538,1716828669752,-500.0,0.00028219,4]
[328063539,1716828669762,-515.43,0.00028219,4]
[328063540,1716828669772,-500.0,0.00028219,4]
[328063541,1716828669784,-531.54,0.00028219,4]
[328063542,1716828669793,-500.0,0.00028219,4]
[328063543,1716828669803,-500.0,0.00028219,4]
[328063544,1716828669812,-408.74379046,0.00028219,4]
[328063545,1716828669823,-659.49,0.00028219,4]
[328063546,1716828669832,-500.0,0.00028219,4]
[328063547,1716828669842,-532.03815212,0.00028219,4]
[328063548,1716828669854,-500.0,0.00028219,4]
[328063549,1716828669864,-500.0,0.00028219,4]
[328063550,1716828669873,-500.0,0.00028219,4]
[328063551,1716828669883,-500.0,0.00028219,4]
[328063552,1716828669893,-500.0,0.00028219,4]
[328063553,1716828669902,-1246.45,0.00028219,4]
[328063554,1716828669912,-504.45,0.00028219,4]
[328063555,1716828669924,-682.29,0.00028219,4]
[328063556,1716828669934,-500.0,0.00028219,4]
[328063557,1716828669943,-500.0,0.00028219,4]
[328063558,1716828669952,-500.0,0.00028219,4]
[328063559,1716828669961,-500.0,0.00028219,4]
[328063560,1716828669971,-550.01,0.00028219,4]
[328063561,1716828669980,-851.4,0.00028219,4]
[328063562,1716828669989,-500.0,0.00028219,4]
[328063563,1716828669998,-500.0,0.00028219,4]
[328063564,1716828670008,-1016.02,0.00028219,4]
[328063565,1716828670017,-500.0,0.00028219,4]
[328063566,1716828670026,-728.84,0.00028219,4]
[328063567,1716828670035,-1130.97,0.00028219,4]
[328063568,1716828670045,-1216.29,0.00028219,4]
[328063569,1716828670056,-2810.41,0.00028219,4]
[328063570,1716828670066,-500.0,0.00028219,4]
[328063571,1716828670075,-2432.96,0.00028219,4]
[328063572,1716828670084,-500.0,0.00028219,4]
[328063573,1716828670094,-518.2,0.00028219,4]
[328063574,1716828670103,-509.77,0.00028219,4]
[328063575,1716828670112,-500.0,0.00028219,4]
[328063576,1716828670121,-500.0,0.00028219,4]
[328063577,1716828670130,-2823.17,0.00028219,4]
[328063578,1716828670140,-500.0,0.00028219,4]
[328063579,1716828670149,-500.0,0.00028219,4]
[328063580,1716828670158,-500.0,0.00028219,4]
[328063581,1716828670167,-500.0,0.00028219,4]
[328063582,1716828670176,-639.85,0.00028219,4]
[328063583,1716828670186,-760.94,0.00028219,4]
[328063584,1716828670195,-500.0,0.00028219,4]
[328063585,1716828670205,-500.0,0.00028219,4]
[328063586,1716828670214,-625.4,0.00028219,4]
[328063587,1716828670224,-594.07,0.00028219,4]
[328063588,1716828670234,-500.0,0.00028219,4]
[328063589,1716828670243,-500.0,0.00028219,4]
[328063590,1716828670252,-500.0,0.00028219,4]
[328063591,1716828670262,-528.09080567,0.00028219,4]
[328063592,1716828670271,-984.46,0.00028219,4]
[328063593,1716828670280,-2041.19,0.00028219,4]
[328063594,1716828670290,-500.0,0.00028219,4]
[328063595,1716828670299,-500.0,0.00028219,4]
[328063596,1716828670311,-2214.31,0.00028219,4]
[328063597,1716828670321,-500.0,0.00028219,4]
[328063598,1716828670330,-1654.46,0.00028219,4]
[328063599,1716828670340,-500.0,0.00028219,4]
[328063600,1716828670350,-591.11,0.00028219,4]
[328063601,1716828670360,-924.61,0.00028219,4]
[328063602,1716828670369,-500.0,0.00028219,4]
[328063603,1716828670379,-500.0,0.00028219,4]
[328063604,1716828670388,-500.0,0.00028219,4]
[328063605,1716828670397,-500.0,0.00028219,4]
[328063606,1716828670406,-500.0,0.00028219,4]
[328063607,1716828670416,-500.0,0.00028219,4]
[328063608,1716828670426,-1453.45,0.00028219,4]
[328063609,1716828670435,-641.76,0.00028219,4]
[328063610,1716828670444,-641.56,0.00028219,4]
[328063611,1716828670454,-371.3958306,0.00028219,4]
[328063612,1716828670464,-500.0,0.00028219,4]
[328063613,1716828670474,-476.9447403,0.00028219,4]
[328063614,1716828670483,-500.0,0.00028219,4]
[328063615,1716828670494,-500.0,0.00028219,4]
[328063616,1716828670504,-500.0,0.00028219,4]
[328063617,1716828670515,-500.0,0.00028219,4]
[328063618,1716828670524,-500.0,0.00028219,4]
[328063619,1716828670533,-500.0,0.00028219,4]
[328063620,1716828670543,-500.0,0.00028219,4]
[328063621,1716828670554,-949.44,0.00028219,4]
[328063622,1716828670564,-3125.75,0.00028219,4]
[328063623,1716828670573,-866.38,0.00028219,4]
[328063624,1716828670583,-1068.09,0.00028219,4]
[328063625,1716828670592,-831.3,0.00028219,4]
[328063626,1716828670602,-654.84,0.00028219,4]
[328063627,1716828670611,-1063.2,0.00028219,4]
[328063628,1716828670621,-988.59,0.00028219,4]
[328063629,1716828670631,-564.73264533,0.00028219,4]
[328063630,1716828670640,-253.31655009,0.00028219,4]